fUST/lending_fUST_20240203
["ID","MTS","AMOUNT","RATE_DAILY","PERIOD"]
[313192694,1706911832757,-1009.87,0.0002767,2]
[313192695,1706911832766,-500.0,0.0002767,2]
[313192696,1706911832775,-500.0,0.0002767,2]
[313192697,1706911832785,-500.0,0.0002767,2]
[313192698,1706911832793,-500.0,0.0002767,2]
[313192699,1706911832803,-500.0,0.0002767,2]
[313192700,1706911832812,-2546.77,0.0002767,2]
[313192701,1706911832821,-500.0,0.0002767,2]
[313192702,1706911832830,-3140.0665646,0.0002767,2]
[313192734,1706911838417,-3632.84448931,0.00027105,5]
[313192736,1706911838427,-500.0,0.00027669,2]
[313192738,1706911838436,-785.2534354,0.0002767,2]
[313192740,1706911838446,-500.0,0.0002767,2]
[313192742,1706911838455,-950.16,0.0002767,2]
[313192744,1706911838465,-500.0,0.0002767,2]
[313192745,1706911838474,-500.0,0.00027671,2]
[313192747,1706911838483,-500.0,0.00027671,2]
[313192748,1706911838492,-500.0,0.00027671,2]
[313192750,1706911838502,-500.0,0.00027671,2]
[313192752,1706911838511,-500.0,0.00027671,2]
[313192753,1706911838520,-3235.58,0.00027671,2]
[313192755,1706911838529,-500.0,0.00027671,2]
[313192757,1706911838538,-500.0,0.00027671,2]
[313192758,1706911838547,-500.0,0.00027671,2]
[313192760,1706911838557,-1038.47,0.00027671,2]
[313192761,1706911838567,-500.0,0.00027671,2]
[313192762,1706911838578,-500.0,0.00027671,2]
[313192763,1706911838588,-500.0,0.00027671,2]
[313192764,1706911838597,-694.96,0.00027671,2]
[313192765,1706911838606,-500.0,0.00027671,2]
[313192766,1706911838616,-500.0,0.00027671,2]
[313192767,1706911838625,-500.0,0.00027671,2]
[313192768,1706911838634,-3000.0,0.000279,4]
[313192769,1706911838643,-2687.46,0.00027943,2]
[313192770,1706911838653,-500.0,0.00027943,2]
[313192771,1706911838663,-500.0,0.00027943,2]
[313192772,1706911838782,-1538.58,0.00027943,2]
[313192773,1706911838796,-500.0,0.00027944,2]
[313192774,1706911838805,-500.0,0.00027944,2]
[313192775,1706911838814,-500.0,0.00027944,2]
[313192776,1706911838824,-500.0,0.00027944,2]
[313192777,1706911838833,-500.0,0.00027944,2]
[313192778,1706911838842,-595.41,0.00027944,2]
[313192779,1706911838851,-500.0,0.00027944,2]
[313192780,1706911838860,-649.79,0.00027944,2]
[313192781,1706911838870,-949.83,0.00027944,2]
[313192782,1706911838879,-781.63,0.00027944,2]
[313192783,1706911838888,-1009.87,0.00027944,2]
[313192784,1706911838896,-500.0,0.00027944,2]
[313192785,1706911838906,-500.0,0.00027944,2]
[313192786,1706911838914,-500.0,0.00027944,2]
[313192787,1706911838923,-500.0,0.00027944,2]
[313192789,1706911838933,-500.0,0.00027944,2]
[313192790,1706911838942,-2546.77,0.00027944,2]
[313192791,1706911838951,-500.0,0.00027944,2]
[313192792,1706911838960,-3925.32,0.00027944,2]
[313192793,1706911838969,-500.0,0.00027944,2]
[313192794,1706911838978,-950.16,0.00027944,2]
[313192795,1706911838988,-500.0,0.00027944,2]
[313192796,1706911838997,-500.0,0.00027945,2]
[313192797,1706911839006,-500.0,0.00027945,2]
[313192798,1706911839015,-3235.58,0.00027945,2]
[313192799,1706911839024,-500.0,0.00027945,2]
[313192800,1706911839033,-500.0,0.00027945,2]
[313192801,1706911839042,-1038.47,0.00027945,2]
[313192802,1706911839051,-500.0,0.00027945,2]
[313192803,1706911839060,-500.0,0.00027945,2]
[313192804,1706911839070,-500.0,0.00027945,2]
[313192805,1706911839079,-694.96,0.00027945,2]
[313192806,1706911839088,-500.0,0.00027945,2]
[313192807,1706911839097,-500.0,0.00027945,2]
[313192808,1706911839106,-500.0,0.00027945,2]
[313192809,1706911839115,-173.82,0.0002799,3]
[313192810,1706911839124,-459.20413887,0.00028,3]
[313192811,1706911839133,-1381.51598192,0.00028,2]
[313192812,1706911839142,-1922.38112409,0.00028,2]
[313192813,1706911839151,-54240.28177765,0.00028,2]
[313192816,1706911841612,-10683.57818707,0.00028,2]
[313192817,1706911841621,-157.182342,0.00028,2]
[313192818,1706911841631,-240.340874,0.00028,2]
[313192819,1706911841639,-199.6142226,0.00028,2]
[313192820,1706911841650,-1154.0,0.00028,4]
[313192821,1706911841658,-5000.0,0.00028048,5]
[313192822,1706911841667,-1576.80191773,0.00028119,2]
[313192824,1706911841676,-1920.75609752,0.00028217,2]
[313192826,1706911841688,-766.70390248,0.00028217,2]
[313192828,1706911841697,-500.0,0.00028217,2]
[313192830,1706911841706,-500.0,0.00028217,2]
[313192831,1706911841715,-1538.58,0.00028217,2]
[313192832,1706911841724,-500.0,0.00028218,2]
[313192833,1706911841733,-500.0,0.00028218,2]
[313192834,1706911841742,-500.0,0.00028218,2]
[313192835,1706911841751,-649.79,0.00028218,2]
[313192836,1706911841759,-949.83,0.00028218,2]
[313192837,1706911841768,-781.63,0.00028218,2]
[313192838,1706911841777,-1009.87,0.00028218,2]
[313192839,1706911841787,-500.0,0.00028218,2]
[313192840,1706911841796,-8.51366511,0.00028218,2]
[313192841,1706911841807,-513.40633489,0.00028218,2]
[313192842,1706911841816,-500.0,0.00028218,2]
[313192843,1706911841825,-500.0,0.00028218,2]
[313192844,1706911841834,-500.0,0.00028218,2]
[313192845,1706911841843,-2546.77,0.00028218,2]
[313192846,1706911841852,-500.0,0.00028218,2]
[313192847,1706911841861,-3925.32,0.00028218,2]
[313192848,1706911841870,-500.0,0.00028218,2]
[313192849,1706911841879,-794.45366511,0.00028218,2]
[313192853,1706911844834,-500.0,0.00027669,2]
[313192942,1706913034921,-357.57083193,0.00024197,2]
[313192945,1706913034933,-594.41734939,0.00024198,2]
[313192947,1706913034947,-5646.08790677,0.00024198,2]
[313192949,1706913034958,-155.01860223,0.00025917,4]
[313192952,1706913034969,-168.624324,0.0002654,2]
[313192954,1706913034981,-200.0,0.00026617,15]
[313192956,1706913034991,-765.40311766,0.00027669,2]
[313192958,1706913035001,-500.0,0.0002767,2]
[313192960,1706913035011,-199.6991802,0.000279,2]
[313192962,1706913035020,-199.6991802,0.000279,2]
[313192964,1706913035030,-195.2006417,0.000279,2]
[313192966,1706913035041,-317.69345941,0.00027937,2]
[313192968,1706913035051,-500.0,0.00027942,2]
[313192970,1706913035062,-500.0,0.00027942,2]
[313192972,1706913035072,-500.0,0.00027942,2]
[313192975,1706913035082,-209.72751018,0.00027942,2]
[313193054,1706913038633,-290.27248982,0.00027942,2]
[313193056,1706913038645,-416.55257892,0.00027942,2]
[313193058,1706913038656,-500.0,0.00027942,2]
[313193060,1706913038666,-500.0,0.00027942,2]
[313193061,1706913038677,-500.0,0.00027942,2]
[313193062,1706913038687,-500.0,0.00027942,2]
[313193063,1706913038698,-240.43567961,0.00027942,2]
[313193064,1706913038711,-259.56432039,0.00027942,2]
[313193065,1706913038853,-500.0,0.00027942,2]
[313193066,1706913038862,-500.0,0.00027942,2]
[313193067,1706913038872,-500.0,0.00027942,2]
[313193068,1706913038881,-500.0,0.00027942,2]
[313193069,1706913038891,-500.0,0.00027942,2]
[313193070,1706913038902,-212.8344376,0.00027942,2]
[313193099,1706913041708,-287.1655624,0.00027942,2]
[313193100,1706913041717,-500.0,0.00027942,2]
[313193101,1706913041726,-500.0,0.00027998,2]
[313193102,1706913041735,-2493.06,0.00027998,2]
[313193103,1706913041744,-500.0,0.00027998,2]
[313193104,1706913041753,-500.0,0.00027998,2]
[313193105,1706913041762,-500.0,0.00027998,2]
[313193106,1706913041771,-500.0,0.00027998,2]
[313193108,1706913041780,-1427.03,0.00027998,2]
[313193110,1706913041790,-500.0,0.00027998,2]
[313193112,1706913041799,-500.0,0.00027999,2]
[313193113,1706913041809,-500.0,0.00027999,2]
[313193114,1706913041818,-500.0,0.00027999,2]
[313193115,1706913041827,-500.0,0.00027999,2]
[313193116,1706913041837,-500.0,0.00027999,2]
[313193117,1706913041846,-620.26,0.00027999,2]
[313193118,1706913041856,-934.07,0.00027999,2]
[313193119,1706913041865,-186.0171548,0.00027999,2]
[313193141,1706913043621,-313.9828452,0.00027999,2]
[313193142,1706913043630,-113.26669718,0.00027999,2]
[313193143,1706913043642,-386.73330282,0.00027999,2]
[313193144,1706913043651,-2228.43,0.00027999,2]
[313193145,1706913043660,-500.0,0.00027999,2]
[313193146,1706913043670,-3434.66,0.00027999,2]
[313193147,1706913043679,-837.88,0.00027999,2]
[313193148,1706913043688,-500.0,0.00027999,2]
[313193149,1706913043697,-459.20413887,0.00028,3]
[313193150,1706913043706,-153.0,0.00028,2]
[313193151,1706913043716,-153.0,0.00028,2]
[313193152,1706913043724,-259.39255831,0.00028,2]
[313193366,1706914237908,-290.81876086,0.00024183,2]
[313193376,1706914240966,-155.02790502,0.00024182,2]
[313193377,1706914240976,-66.75207107,0.00024183,2]
[313193378,1706914240985,-180.66202356,0.00024202,2]
[313193379,1706914240997,-1230.85995314,0.00024202,2]
[313193380,1706914241007,-212.2919105,0.00024206,2]
[313193381,1706914241016,-167.633153,0.00026769,2]
[313193382,1706914241026,-620.15569211,0.00027143,2]
[313193383,1706914241036,-2080.95929125,0.00027669,7]
[313193384,1706914241051,-575.7719998,0.00027669,7]
[313193836,1706914246548,-463.36013766,0.00027669,7]
[313193842,1706914246602,-17551.40200443,0.00027669,7]
[313193844,1706914246613,-932.40733727,0.00027669,7]
[313193846,1706914246622,-153.0,0.000277,2]
[313193848,1706914246631,-153.0,0.000277,2]
[313193850,1706914246642,-127.61789073,0.000277,2]
[313194750,1706915431857,-1585.4108425,0.0002393,2]
[313194752,1706915431866,-155.0356582,0.00023931,2]
[313194754,1706915431875,-2107.61060865,0.00023931,2]
[313194756,1706915431884,-20935.35188878,0.00023931,2]
[313194758,1706915431893,-357.57083193,0.00023932,2]
[313194760,1706915431902,-5847.3829975,0.00023932,2]
[313194762,1706915431911,-352.88049417,0.00024164,2]
[313194764,1706915431920,-345.24229214,0.00024164,2]
[313194766,1706915431930,-1722.38811776,0.00024164,2]
[313194768,1706915431939,-309.98450155,0.00024928,2]
[313194770,1706915431948,-2432.09469252,0.00025569,2]
[313194772,1706915431957,-200.0,0.00026441,15]
[313194774,1706915431966,-153.0,0.00026878,2]
[313194776,1706915431975,-153.0,0.00026878,2]
[313194778,1706915431984,-199.6991802,0.00026878,2]
[313194780,1706915431993,-153.0,0.00026878,2]
[313194782,1706915432002,-371.2448491,0.00026878,2]
[313194784,1706915432011,-153.0,0.00026878,2]
[313194786,1706915432020,-153.0,0.00026878,2]
[313194788,1706915432029,-199.6991802,0.00026878,2]
[313194790,1706915432039,-153.0,0.00026878,2]
[313194792,1706915432048,-153.0,0.000269,2]
[313194794,1706915432059,-153.0,0.000269,2]
[313194796,1706915432069,-199.6991802,0.000269,2]
[313194798,1706915432078,-153.0,0.000269,2]
[313194800,1706915432087,-153.0,0.000269,2]
[313194802,1706915432096,-199.6991802,0.000269,2]
[313194804,1706915432106,-153.0,0.000269,2]
[313194806,1706915432115,-278.60824485,0.00027397,2]
[313194808,1706915432124,-3026.95,0.00027399,2]
[313194810,1706915432134,-4362.31,0.00027399,2]
[313194812,1706915432143,-306.0,0.000274,2]
[313194814,1706915432152,-153.0,0.000274,2]
[313194816,1706915432162,-450.787463,0.000274,2]
[313194818,1706915432171,-199.6142226,0.000274,2]
[313194820,1706915432181,-313.3863444,0.000274,2]
[313194822,1706915432190,-153.1918087,0.000274,2]
[313194824,1706915432199,-153.0,0.000274,2]
[313194826,1706915432208,-153.0,0.000274,2]
[313194828,1706915432218,-153.0,0.000274,2]
[313194830,1706915432227,-153.0,0.000274,2]
[313194832,1706915432236,-306.142195,0.000274,2]
[313194834,1706915432245,-199.6991802,0.000274,2]
[313194836,1706915432255,-178.3821093,0.000274,2]
[313194838,1706915432264,-153.0,0.000274,2]
[313194840,1706915432274,-153.0,0.000274,2]
[313194842,1706915432283,-153.0,0.000274,2]
[313194844,1706915432292,-153.0,0.000274,2]
[313194846,1706915432303,-199.6991802,0.000274,2]
[313194848,1706915432312,-199.6991802,0.000274,2]
[313194850,1706915432321,-153.0,0.000274,2]
[313194852,1706915432330,-153.0,0.000274,2]
[313194854,1706915432340,-153.0,0.000274,2]
[313194856,1706915432349,-153.3102,0.000274,2]
[313194858,1706915432358,-153.0,0.000274,2]
[313194860,1706915432367,-153.0,0.000274,2]
[313194862,1706915432376,-153.0,0.000274,2]
[313194864,1706915432385,-199.6991802,0.000274,2]
[313194866,1706915432394,-153.0,0.000274,2]
[313194868,1706915432403,-153.0,0.000274,2]
[313194870,1706915432413,-500.0,0.00027498,2]
[313194872,1706915432423,-500.0,0.00027498,2]
[313194874,1706915432432,-1683.6,0.00027498,2]
[313194876,1706915432441,-500.0,0.00027498,2]
[313194878,1706915432451,-1141.57554499,0.00027499,2]
[313194880,1706915432460,-1141.57554499,0.00027524,2]
[313194882,1706915432469,-1141.57554499,0.0002755,2]
[313194884,1706915432477,-1141.57554499,0.00027575,2]
[313194886,1706915432486,-500.0,0.00027598,2]
[313194888,1706915432496,-500.0,0.00027598,2]
[313194890,1706915432504,-500.0,0.00027598,2]
[313194892,1706915432514,-500.0,0.00027598,2]
[313194894,1706915432523,-500.0,0.00027598,2]
[313194896,1706915432533,-500.0,0.00027598,2]
[313194898,1706915432542,-1305.82,0.00027598,2]
[313194900,1706915432551,-500.0,0.00027598,2]
[313194902,1706915432561,-500.0,0.00027598,2]
[313194904,1706915432569,-500.0,0.00027598,2]
[313194906,1706915432579,-341.5312248,0.00027598,2]
[313194908,1706915432592,-158.4687752,0.00027598,2]
[313194910,1706915432601,-281.0962248,0.00027598,2]
[313194913,1706915432612,-218.9037752,0.00027598,2]
[313194915,1706915432621,-500.0,0.00027598,2]
[313194917,1706915432630,-846.4,0.00027598,2]
[313194918,1706915432644,-500.0,0.00027598,2]
[313194920,1706915432656,-434.6962248,0.00027598,2]
[313194923,1706915432670,-65.3037752,0.00027598,2]
[313194925,1706915432679,-500.0,0.00027598,2]
[313194927,1706915432689,-500.0,0.00027598,2]
[313194929,1706915432697,-193.00723402,0.00027598,2]
[313194931,1706915432709,-306.99276598,0.00027598,2]
[313194933,1706915432719,-17.22686935,0.00027598,2]
[313194935,1706915432730,-482.77313065,0.00027598,2]
[313194937,1706915432740,-500.0,0.00027598,2]
[313194939,1706915432751,-500.0,0.00027599,2]
[313194942,1706915432761,-500.0,0.00027599,2]
[313194943,1706915432771,-500.0,0.00027599,2]
[313194945,1706915432780,-1114.16,0.00027599,2]
[313194947,1706915432789,-500.0,0.00027599,2]
[313194949,1706915432798,-924.85,0.00027599,2]
[313194951,1706915432807,-500.0,0.00027599,2]
[313194953,1706915432816,-123.08664899,0.00027599,2]
[313194956,1706915432828,-662.55335101,0.00027599,2]
[313194958,1706915432837,-500.0,0.00027599,2]
[313194960,1706915432846,-1131.36,0.00027599,2]
[313194962,1706915432855,-500.0,0.00027599,2]
[313194964,1706915432864,-347.53312367,0.00027599,2]
[313194966,1706915432872,-500.0,0.00027599,2]
[313194968,1706915432881,-2475.19998043,0.00027599,2]
[313195072,1706915437957,-500.0,0.00027399,2]
[313195073,1706915437967,-117.95892829,0.00027598,2]
[313195074,1706915438015,-949.78107171,0.00027598,2]
[313195075,1706915438024,-213.74001957,0.00027599,2]
[313195076,1706915438033,-500.0,0.00027599,2]
[313195077,1706915438042,-500.0,0.00027599,2]
[313195078,1706915438051,-4167.59,0.00027599,2]
[313195079,1706915438062,-500.0,0.00027599,2]
[313195080,1706915438070,-500.0,0.00027599,2]
[313195081,1706915438080,-1035.81,0.00027599,2]
[313195082,1706915438089,-500.0,0.00027599,2]
[313195083,1706915438098,-151.0,0.00027599,2]
[313195084,1706915438107,-3347.0,0.000276,2]
[313195085,1706915438117,-153.0,0.000276,2]
[313195086,1706915438126,-199.6991802,0.000276,2]
[313195087,1706915438136,-153.0,0.000276,2]
[313195088,1706915438146,-199.6991802,0.000276,2]
[313195089,1706915438156,-1141.57554499,0.000276,2]
[313195090,1706915438165,-151.0,0.000276,2]
[313195091,1706915438174,-151.0,0.000276,2]
[313195092,1706915438183,-151.9547315,0.00027645,2]
[313195093,1706915438192,-228.547315,0.00027672,2]
[313195094,1706915438201,-3026.95,0.00027673,2]
[313195095,1706915438210,-4362.31,0.00027673,2]
[313195096,1706915438219,-500.0,0.00027673,2]
[313195097,1706915438228,-500.0,0.00027674,2]
[313195098,1706915438237,-204.95939019,0.00027674,2]
[313195099,1706915438246,-500.0,0.00027674,2]
[313195100,1706915438254,-500.0,0.00027674,2]
[313195101,1706915438263,-500.0,0.00027674,2]
[313195102,1706915438273,-500.0,0.00027674,2]
[313195103,1706915438283,-500.0,0.00027674,2]
[313195104,1706915438292,-500.0,0.00027674,2]
[313195105,1706915438301,-559.14879036,0.00027674,2]
[313195106,1706915438311,-500.0,0.00027674,2]
[313195107,1706915438323,-500.0,0.00027674,2]
[313195108,1706915438332,-500.0,0.00027674,2]
[313195109,1706915438342,-500.0,0.00027674,2]
[313195110,1706915438351,-500.0,0.00027674,2]
[313195111,1706915438361,-500.0,0.00027674,2]
[313195112,1706915438370,-500.0,0.00027674,2]
[313195113,1706915438380,-500.0,0.00027674,2]
[313195114,1706915438390,-151.0,0.00027686,2]
[313195115,1706915438399,-230.990847,0.00027686,2]
[313195116,1706915438408,-230.990847,0.00027686,2]
[313195117,1706915438418,-151.0,0.00027686,2]
[313195118,1706915438427,-151.0,0.00027686,2]
[313195119,1706915438436,-6631.15638014,0.00027687,2]
[313195120,1706915438445,-2275.28,0.0002769,3]
[313195121,1706915438455,-323.57048434,0.00027698,2]
[313195122,1706915438466,-178.21239998,0.00027698,2]
[313195123,1706915438478,-679.86163762,0.00027698,2]
[313195124,1706915438487,-309.98450155,0.00027698,2]
[313195125,1706915438497,-1200.08348294,0.00027698,2]
[313195126,1706915438506,-309.98450155,0.00027698,2]
[313195127,1706915438515,-155.32972216,0.00027698,2]
[313195128,1706915438524,-1000.23005291,0.00027699,2]
[313195129,1706915438534,-500.0,0.00027699,2]
[313195130,1706915438543,-517.30337877,0.00027699,2]
[313195131,1706915438552,-151.0,0.00027699,2]
[313195132,1706915438561,-230.990847,0.00027699,2]
[313195133,1706915438571,-230.990847,0.00027699,2]
[313195134,1706915438580,-1012.14837358,0.000277,2]
[313195135,1706915438590,-239.52152109,0.000277,2]
[313195136,1706915438599,-111328.60529321,0.000277,7]
[313195137,1706915438611,-3453.65817271,0.000277,7]
[313195158,1706915443287,-301.87875,0.00027599,2]
[313195159,1706915443300,-198.12125,0.00027599,2]
[313195160,1706915443310,-302.2387626,0.000277,7]
[313195161,1706915443321,-14690.19058619,0.000277,7]
[313195169,1706915446049,-752.9,0.00027598,2]
[313195170,1706915446058,-907.14,0.00027598,2]
[313195171,1706915446067,-1583.172084,0.00027699,2]
[313195172,1706915446076,-155.0356582,0.00027699,2]
[313195173,1706915446085,-22155.81631634,0.000277,7]
[313195174,1706915446094,-765.40311766,0.000277,2]
[313195175,1706915446103,-280.25684936,0.000277,2]
[313195176,1706915446112,-153.0,0.000277,2]
[313195177,1706915446120,-199.6991802,0.000277,2]
[313195178,1706915446130,-153.0,0.000277,2]
[313195179,1706915446139,-199.6991802,0.000277,2]
[313195180,1706915446148,-153.0,0.000277,2]
[313195181,1706915446158,-151.0,0.000277,2]
[313195182,1706915446167,-230.990847,0.000277,2]
[313195183,1706915446177,-230.990847,0.000277,2]
[313195184,1706915446186,-151.0,0.000277,2]
[313195185,1706915446195,-151.0,0.000277,2]
[313195186,1706915446204,-151.0,0.000277,2]
[313195187,1706915446213,-151.0,0.000277,2]
[313195188,1706915446223,-500.0,0.00027772,2]
[313195189,1706915446231,-500.0,0.00027772,2]
[313195190,1706915446241,-1683.6,0.00027772,2]
[313195191,1706915446250,-500.0,0.00027772,2]
[313195192,1706915446259,-500.0,0.00027872,2]
[313195193,1706915446268,-500.0,0.00027872,2]
[313195194,1706915446277,-1305.82,0.00027872,2]
[313195195,1706915446286,-151.0,0.00027872,2]
[313195196,1706915446296,-151.0,0.00027872,2]
[313195197,1706915446306,-500.0,0.00027872,2]
[313195198,1706915446315,-500.0,0.00027872,2]
[313195199,1706915446324,-500.0,0.00027872,2]
[313195200,1706915446333,-500.0,0.00027872,2]
[313195201,1706915446343,-500.0,0.00027872,2]
[313195202,1706915446353,-846.4,0.00027872,2]
[313195203,1706915446362,-500.0,0.00027872,2]
[313195204,1706915446371,-500.0,0.00027872,2]
[313195205,1706915446380,-500.0,0.00027872,2]
[313195206,1706915446390,-1067.74,0.00027872,2]
[313195207,1706915446399,-752.9,0.00027872,2]
[313195208,1706915446408,-907.14,0.00027872,2]
[313195209,1706915446418,-500.0,0.00027873,2]
[313195210,1706915446428,-151.0,0.00027873,2]
[313195211,1706915446437,-230.990847,0.00027873,2]
[313195212,1706915446447,-230.990847,0.00027873,2]
[313195213,1706915446456,-500.0,0.00027873,2]
[313195214,1706915446465,-500.0,0.00027873,2]
[313195215,1706915446475,-500.0,0.00027873,2]
[313195216,1706915446483,-1131.36,0.00027873,2]
[313195217,1706915446493,-500.0,0.00027873,2]
[313195218,1706915446502,-500.0,0.00027873,2]
[313195219,1706915446511,-2688.94,0.00027873,2]
[313195220,1706915446521,-500.0,0.00027873,2]
[313195221,1706915446532,-4167.59,0.00027873,2]
[313195222,1706915446542,-500.0,0.00027873,2]
[313195223,1706915446551,-1035.81,0.00027873,2]
[313195224,1706915446560,-500.0,0.00027873,2]
[313195225,1706915446570,-3000.0,0.000279,4]
[313195226,1706915446580,-151.0,0.000279,2]
[313195227,1706915446589,-151.0,0.000279,2]
[313195228,1706915446599,-153.0,0.000279,2]
[313195229,1706915446609,-3026.95,0.00027947,2]
[313195230,1706915446620,-4362.31,0.00027947,2]
[313195231,1706915446631,-500.0,0.00027947,2]
[313195232,1706915446642,-500.0,0.00027948,2]
[313195233,1706915446651,-500.0,0.00027948,2]
[313195234,1706915446660,-500.0,0.00027948,2]
[313195235,1706915446669,-500.0,0.00027948,2]
[313195236,1706915446678,-500.0,0.00027948,2]
[313195237,1706915446688,-500.0,0.00027948,2]
[313195238,1706915446698,-151.0,0.00027948,2]
[313195239,1706915446706,-230.990847,0.00027948,2]
[313195240,1706915446717,-230.990847,0.00027948,2]
[313195241,1706915446727,-500.0,0.00027948,2]
[313195242,1706915446737,-500.0,0.00027948,2]
[313195243,1706915446746,-500.0,0.00027948,2]
[313195244,1706915446756,-999.79994799,0.00027958,2]
[313195245,1706915446765,-151.0,0.0002796,2]
[313195246,1706915446776,-230.990847,0.0002796,2]
[313195247,1706915446785,-230.990847,0.0002796,2]
[313195248,1706915446794,-151.0,0.0002796,2]
[313195249,1706915446802,-151.0,0.0002796,2]
[313195250,1706915446813,-500.0,0.00027996,2]
[313195251,1706915446822,-500.0,0.00027996,2]
[313195252,1706915446831,-500.0,0.00027996,2]
[313195253,1706915446840,-500.0,0.00027996,2]
[313195254,1706915446849,-500.0,0.00027996,2]
[313195255,1706915446858,-500.0,0.00027996,2]
[313195256,1706915446867,-500.0,0.00027996,2]
[313195257,1706915446877,-500.0,0.00027996,2]
[313195258,1706915446886,-500.0,0.00027996,2]
[313195259,1706915446895,-500.0,0.00027996,2]
[313195260,1706915446903,-500.0,0.00027996,2]
[313195261,1706915446912,-500.17343658,0.00027996,2]
[313195262,1706915446924,-500.0,0.00027996,2]
[313195263,1706915446934,-500.0,0.00027996,2]
[313195264,1706915446943,-500.0,0.00027996,2]
[313195265,1706915446952,-230.990847,0.00027996,2]
[313195266,1706915446961,-230.990847,0.00027996,2]
[313195267,1706915446971,-151.0,0.00027996,2]
[313195268,1706915446980,-153.330725,0.00027996,2]
[313195269,1706915446989,-459.20413887,0.00028,3]
[313195270,1706915446998,-654.58212953,0.00028,2]
[313195271,1706915447007,-455.040239,0.00028,2]
[313195272,1706915447016,-44380.68568654,0.00028,2]
[313195273,1706915447026,-1922.38112409,0.00028,2]
[313195274,1706915447034,-1381.51598192,0.00028,2]
[313195275,1706915447044,-230.990847,0.00028,2]
[313195276,1706915447053,-230.990847,0.00028,2]
[313195277,1706915447062,-151.0,0.00028,2]
[313195278,1706915447072,-500.0,0.00028046,2]
[313195279,1706915447081,-500.0,0.00028046,2]
[313195280,1706915447090,-1683.6,0.00028046,2]
[313195281,1706915447099,-500.0,0.00028046,2]
[313195282,1706915447108,-5000.0,0.00028055,5]
[313195283,1706915447118,-12465.39701143,0.00028119,2]
[313195284,1706915447127,-230.990847,0.00028119,2]
[313195285,1706915447136,-230.990847,0.00028119,2]
[313195286,1706915447145,-151.0,0.00028119,2]
[313195287,1706915447154,-500.0,0.00028146,2]
[313195288,1706915447163,-500.0,0.00028146,2]
[313195289,1706915447172,-1305.82,0.00028146,2]
[313195290,1706915447181,-500.0,0.00028146,2]
[313195291,1706915447190,-500.0,0.00028146,2]
[313195292,1706915447199,-500.0,0.00028146,2]
[313195293,1706915447208,-846.4,0.00028146,2]
[313195294,1706915447217,-500.0,0.00028146,2]
[313195295,1706915447226,-500.0,0.00028146,2]
[313195296,1706915447235,-500.0,0.00028146,2]
[313195297,1706915447244,-1067.74,0.00028146,2]
[313195298,1706915447253,-752.9,0.00028146,2]
[313195299,1706915447263,-907.14,0.00028146,2]
[313195300,1706915447272,-500.0,0.00028147,2]
[313195301,1706915447281,-230.990847,0.00028147,2]
[313195302,1706915447290,-230.990855,0.00028147,2]
[313195303,1706915447304,-500.0,0.00028147,2]
[313195304,1706915447313,-500.0,0.00028147,2]
[313195305,1706915447322,-500.0,0.00028147,2]